[Event "Titled Tuesday Blitz April 11 Late 2023"]
[White "Davtyan, David Arm."]
[Black "Almeida Junior, Alvaro Alves de"]
[WhiteFideId "13310046"]
[BlackFideId "2149974"]
[WhiteElo "2274"]
[BlackElo "2122"]
[Result "0-1"]
[Round "06"]
[TimeControl "180+2"]
[Date "2023.04.11"]
[WhiteClock "0:00:43"]
[BlackClock "0:00:35"]

1. e4 {[%clk 0:03:00]}  c5 {[%clk 0:02:59]} 2. Nc3 {[%clk 0:03:00]}  Nc6 {[%clk 0:02:58]} 3. g3 {[%clk 0:03:01]}  g6 {[%clk 0:02:58]} 4. Bg2 {[%clk 0:03:01]}  Bg7 {[%clk 0:02:59]} 5. d3 {[%clk 0:03:02]}  e6 {[%clk 0:02:59]} 6. Be3 {[%clk 0:03:02]}  d6 {[%clk 0:02:59]} 7. Qd2 {[%clk 0:03:02]}  Rb8 {[%clk 0:02:53]} 8. Nge2 {[%clk 0:03:00]}  a6 {[%clk 0:02:52]} 9. a3 {[%clk 0:02:59]}  b5 {[%clk 0:02:51]} 10. O-O {[%clk 0:02:55]}  Nge7 {[%clk 0:02:39]} 11. d4 {[%clk 0:02:55]}  cxd4 {[%clk 0:02:35]} 12. Nxd4 {[%clk 0:02:55]}  O-O {[%clk 0:02:24]} 13. Rad1 {[%clk 0:02:54]}  Ne5 {[%clk 0:02:18]} 14. b3 {[%clk 0:02:48]}  Bb7 {[%clk 0:02:09]} 15. h3 {[%clk 0:02:47]}  d5 {[%clk 0:01:50]} 16. f4 {[%clk 0:02:27]}  N5c6 {[%clk 0:01:50]} 17. Nxc6 {[%clk 0:02:26]}  Bxc6 {[%clk 0:01:51]} 18. exd5 {[%clk 0:02:26]}  exd5 {[%clk 0:01:21]} 19. Nxd5 {[%clk 0:02:19]}  Bxd5 {[%clk 0:01:19]} 20. Bxd5 {[%clk 0:02:20]}  Nxd5 {[%clk 0:01:18]} 21. Qxd5 {[%clk 0:02:20]}  Qc7 {[%clk 0:01:13]} 22. Qc5 {[%clk 0:02:03]}  Qb7 {[%clk 0:01:04]} 23. Qd5 {[%clk 0:02:01]}  Qc7 {[%clk 0:01:03]} 24. Qg2 {[%clk 0:01:57]}  Rfe8 {[%clk 0:01:00]} 25. Bd4 {[%clk 0:01:38]}  Bxd4+ {[%clk 0:00:57]} 26. Rxd4 {[%clk 0:01:39]}  Qc5 {[%clk 0:00:57]} 27. Qf2 {[%clk 0:01:39]}  Qxa3 {[%clk 0:00:57]} 28. f5 {[%clk 0:01:38]}  Rb7 {[%clk 0:00:48]} 29. fxg6 {[%clk 0:01:21]}  hxg6 {[%clk 0:00:49]} 30. Rh4 {[%clk 0:01:19]}  Qe7 {[%clk 0:00:45]} 31. Qf6 {[%clk 0:01:04]}  Qxf6 {[%clk 0:00:37]} 32. Rxf6 {[%clk 0:01:05]}  Re6 {[%clk 0:00:37]} 33. Rxe6 {[%clk 0:01:05]}  fxe6 {[%clk 0:00:38]} 34. Re4 {[%clk 0:01:05]}  Kf7 {[%clk 0:00:38]} 35. Kf2 {[%clk 0:01:04]}  Rc7 {[%clk 0:00:38]} 36. Re2 {[%clk 0:01:03]}  Rc3 {[%clk 0:00:38]} 37. h4 {[%clk 0:00:58]}  a5 {[%clk 0:00:37]} 38. g4 {[%clk 0:00:58]}  a4 {[%clk 0:00:38]} 39. bxa4 {[%clk 0:00:58]}  bxa4 {[%clk 0:00:39]} 40. Re4 {[%clk 0:00:49]}  Rxc2+ {[%clk 0:00:37]} 41. Kg3 {[%clk 0:00:49]}  a3 {[%clk 0:00:38]} 42. Ra4 {[%clk 0:00:50]}  a2 {[%clk 0:00:38]} 43. Kf4 {[%clk 0:00:49]}  Rc4+ {[%clk 0:00:37]} 44. Rxc4 {[%clk 0:00:49]}  a1=Q {[%clk 0:00:37]} 45. Rc7+ {[%clk 0:00:49]}  Kf8 {[%clk 0:00:36]} 46. Rh7 {[%clk 0:00:43]}  Qf6+ {[%clk 0:00:34]} 47. Ke4 {[%clk 0:00:42]}  Kg8 {[%clk 0:00:34]} 48. Rd7 {[%clk 0:00:40]}  Qxh4 {[%clk 0:00:32]} 49. Ke5 {[%clk 0:00:40]}  Qxg4 {[%clk 0:00:31]} 50. Kf6 {[%clk 0:00:40]}  Qf5+ {[%clk 0:00:31]} 51. Ke7 {[%clk 0:00:40]}  Qf7+ {[%clk 0:00:32]} 52. Kd6 {[%clk 0:00:40]}  Qxd7+ {[%clk 0:00:32]} 53. Kxd7 {[%clk 0:00:40]}  Kf7 {[%clk 0:00:33]} 54. Kd6 {[%clk 0:00:41]}  Kf6 {[%clk 0:00:34]} 55. Kc5 {[%clk 0:00:41]}  Kf5 {[%clk 0:00:34]} 56. Kd4 {[%clk 0:00:42]}  Kf4 {[%clk 0:00:34]} 57. Kd3 {[%clk 0:00:42]}  Kf3 {[%clk 0:00:35]} 58. Kd2 {[%clk 0:00:42]}  Kf2 {[%clk 0:00:34]} 59. Kd3 {[%clk 0:00:43]}  g5 {[%clk 0:00:35]} 0-1


[Site "https://www.chess.com"]

[Event "Titled Tuesday Blitz April 11 Late 2023"]
[White "Osmonbekov, Talaibek"]
[Black "Kujawski, Adam"]
[WhiteFideId "2017253"]
[BlackFideId "1100920"]
[WhiteElo "2135"]
[BlackElo "2054"]
[Result "1-0"]
[Round "06"]
[TimeControl "180+2"]
[Date "2023.04.11"]
[WhiteClock "0:00:08"]
[BlackClock "0:00:08"]

1. d4 {[%clk 0:03:00]}  Nf6 {[%clk 0:02:56]} 2. Bf4 {[%clk 0:02:59]}  c5 {[%clk 0:02:56]} 3. d5 {[%clk 0:02:58]}  e6 {[%clk 0:02:52]} 4. d6 {[%clk 0:02:53]}  Qb6 {[%clk 0:02:39]} 5. Nd2 {[%clk 0:02:51]}  Nd5 {[%clk 0:02:29]} 6. Bg3 {[%clk 0:02:44]}  Bxd6 {[%clk 0:02:17]} 7. Nc4 {[%clk 0:02:42]}  Qb4+ {[%clk 0:02:16]} 8. c3 {[%clk 0:02:42]}  Qxc4 {[%clk 0:02:15]} 9. Bxd6 {[%clk 0:02:40]}  Qa6 {[%clk 0:01:06]} 10. Bxb8 {[%clk 0:02:21]}  Rxb8 {[%clk 0:01:06]} 11. e4 {[%clk 0:02:22]}  Qb6 {[%clk 0:00:52]} 12. exd5 {[%clk 0:02:18]}  Qxb2 {[%clk 0:00:52]} 13. Rc1 {[%clk 0:02:18]}  exd5 {[%clk 0:00:44]} 14. Rc2 {[%clk 0:02:11]}  Qb6 {[%clk 0:00:44]} 15. Re2+ {[%clk 0:02:10]}  Kf8 {[%clk 0:00:42]} 16. Qxd5 {[%clk 0:02:08]}  d6 {[%clk 0:00:40]} 17. Nf3 {[%clk 0:01:54]}  Be6 {[%clk 0:00:39]} 18. Qd1 {[%clk 0:01:52]}  h6 {[%clk 0:00:36]} 19. g3 {[%clk 0:01:52]}  Rd8 {[%clk 0:00:30]} 20. Bg2 {[%clk 0:01:51]}  Qa5 {[%clk 0:00:30]} 21. Qc2 {[%clk 0:01:40]}  Bc4 {[%clk 0:00:26]} 22. Rd2 {[%clk 0:01:33]}  Re8+ {[%clk 0:00:25]} 23. Kd1 {[%clk 0:01:33]}  g6 {[%clk 0:00:20]} 24. Re1 {[%clk 0:01:30]}  Kg7 {[%clk 0:00:20]} 25. Rxe8 {[%clk 0:01:26]}  Rxe8 {[%clk 0:00:21]} 26. Rxd6 {[%clk 0:01:23]}  Bxa2 {[%clk 0:00:20]} 27. c4 {[%clk 0:01:07]}  b5 {[%clk 0:00:13]} 28. Qb2+ {[%clk 0:00:59]}  Kh7 {[%clk 0:00:12]} 29. Qxb5 {[%clk 0:00:58]}  Qc3 {[%clk 0:00:09]} 30. Nd2 {[%clk 0:00:39]}  Re7 {[%clk 0:00:09]} 31. Rd7 {[%clk 0:00:36]}  Rxd7 {[%clk 0:00:08]} 32. Qxd7 {[%clk 0:00:35]}  Bxc4 {[%clk 0:00:09]} 33. Nxc4 {[%clk 0:00:31]}  Qxc4 {[%clk 0:00:09]} 34. Bd5 {[%clk 0:00:30]}  Qd4+ {[%clk 0:00:09]} 35. Ke2 {[%clk 0:00:29]}  Qe5+ {[%clk 0:00:09]} 36. Kf3 {[%clk 0:00:28]}  Qf6+ {[%clk 0:00:08]} 37. Kg2 {[%clk 0:00:27]}  Kg7 {[%clk 0:00:09]} 38. Qxa7 {[%clk 0:00:25]}  c4 {[%clk 0:00:10]} 39. Qc5 {[%clk 0:00:22]}  c3 {[%clk 0:00:09]} 40. h4 {[%clk 0:00:21]}  h5 {[%clk 0:00:08]} 41. Qc4 {[%clk 0:00:19]}  Qe5 {[%clk 0:00:07]} 42. Be4 {[%clk 0:00:14]}  Kg8 {[%clk 0:00:04]} 43. Bxg6 {[%clk 0:00:12]}  Qf6 {[%clk 0:00:03]} 44. Bc2 {[%clk 0:00:11]}  Kg7 {[%clk 0:00:03]} 45. Qd3 {[%clk 0:00:11]}  Qe5 {[%clk 0:00:03]} 46. Qh7+ {[%clk 0:00:11]}  Kf8 {[%clk 0:00:04]} 47. Qh6+ {[%clk 0:00:10]}  Ke7 {[%clk 0:00:05]} 48. Qe3 {[%clk 0:00:10]}  Qxe3 {[%clk 0:00:05]} 49. fxe3 {[%clk 0:00:10]}  Kf6 {[%clk 0:00:05]} 50. Kf3 {[%clk 0:00:11]}  Ke5 {[%clk 0:00:06]} 51. Ke2 {[%clk 0:00:09]}  f6 {[%clk 0:00:07]} 52. Kd3 {[%clk 0:00:09]}  Kf5 {[%clk 0:00:06]} 53. Bd1 {[%clk 0:00:06]}  c2 {[%clk 0:00:05]} 54. Kxc2 {[%clk 0:00:06]}  Ke4 {[%clk 0:00:06]} 55. Kd2 {[%clk 0:00:07]}  f5 {[%clk 0:00:06]} 56. Bxh5 {[%clk 0:00:07]}  f4 {[%clk 0:00:06]} 57. exf4 {[%clk 0:00:06]}  Kd4 {[%clk 0:00:07]} 58. Bf3 {[%clk 0:00:06]}  Kc5 {[%clk 0:00:06]} 59. h5 {[%clk 0:00:07]}  Kd6 {[%clk 0:00:07]} 60. h6 {[%clk 0:00:07]}  Ke6 {[%clk 0:00:08]} 61. h7 {[%clk 0:00:07]}  Kf7 {[%clk 0:00:09]} 62. h8=Q {[%clk 0:00:07]}  Kg6 {[%clk 0:00:08]} 63. Qh5+ {[%clk 0:00:07]}  Kf6 {[%clk 0:00:08]} 64. Qe5+ {[%clk 0:00:08]}  Kg6 {[%clk 0:00:08]} 65. Be4+ {[%clk 0:00:08]}  Kh6 {[%clk 0:00:08]} 66. Qg5# {[%clk 0:00:08]} 1-0


[Site "https://www.chess.com"]

[Event "Titled Tuesday Blitz April 11 Late 2023"]
[White "Krishnan, Varun"]
[Black "Barria Santos, Jose Guilherme"]
[WhiteFideId "5054508"]
[BlackFideId "1939300"]
[WhiteElo "2341"]
[BlackElo "2266"]
[Result "1-0"]
[Round "06"]
[TimeControl "180+2"]
[Date "2023.04.11"]
[WhiteClock "0:01:53"]
[BlackClock "0:00:18"]

1. d4 {[%clk 0:03:00]}  Nf6 {[%clk 0:03:00]} 2. c4 {[%clk 0:03:00]}  g6 {[%clk 0:03:00]} 3. g3 {[%clk 0:02:59]}  Bg7 {[%clk 0:03:01]} 4. Bg2 {[%clk 0:02:59]}  O-O {[%clk 0:03:01]} 5. Nf3 {[%clk 0:03:00]}  d6 {[%clk 0:03:02]} 6. O-O {[%clk 0:03:00]}  Nc6 {[%clk 0:03:02]} 7. a3 {[%clk 0:02:59]}  e5 {[%clk 0:03:01]} 8. e3 {[%clk 0:02:54]}  e4 {[%clk 0:03:01]} 9. Nfd2 {[%clk 0:02:54]}  Re8 {[%clk 0:03:01]} 10. Nc3 {[%clk 0:02:54]}  Bg4 {[%clk 0:02:53]} 11. Qc2 {[%clk 0:02:53]}  Bf5 {[%clk 0:02:36]} 12. Nd5 {[%clk 0:02:47]}  Nxd5 {[%clk 0:01:39]} 13. cxd5 {[%clk 0:02:46]}  Ne7 {[%clk 0:01:40]} 14. Bxe4 {[%clk 0:02:46]}  Bxe4 {[%clk 0:01:38]} 15. Qxe4 {[%clk 0:02:46]}  c6 {[%clk 0:01:28]} 16. dxc6 {[%clk 0:02:46]}  bxc6 {[%clk 0:01:27]} 17. Qf3 {[%clk 0:02:46]}  Nd5 {[%clk 0:01:25]} 18. Ne4 {[%clk 0:02:42]}  Qe7 {[%clk 0:01:21]} 19. Nc3 {[%clk 0:02:41]}  Nxc3 {[%clk 0:01:10]} 20. bxc3 {[%clk 0:02:42]}  Rac8 {[%clk 0:01:10]} 21. Rb1 {[%clk 0:02:37]}  c5 {[%clk 0:01:10]} 22. Bd2 {[%clk 0:02:31]}  cxd4 {[%clk 0:01:10]} 23. cxd4 {[%clk 0:02:29]}  Qe6 {[%clk 0:01:10]} 24. Rb7 {[%clk 0:02:26]}  Qa2 {[%clk 0:01:09]} 25. Bb4 {[%clk 0:02:24]}  Rcd8 {[%clk 0:00:52]} 26. Rxa7 {[%clk 0:02:24]}  Qc4 {[%clk 0:00:43]} 27. Qf4 {[%clk 0:02:14]}  Qd5 {[%clk 0:00:41]} 28. Rc1 {[%clk 0:02:09]}  Rc8 {[%clk 0:00:37]} 29. Rcc7 {[%clk 0:02:00]}  Rxc7 {[%clk 0:00:30]} 30. Rxc7 {[%clk 0:02:01]}  Qe6 {[%clk 0:00:17]} 31. Qxd6 {[%clk 0:01:57]}  Qe4 {[%clk 0:00:17]} 32. Qd7 {[%clk 0:01:55]}  Qb1+ {[%clk 0:00:17]} 33. Kg2 {[%clk 0:01:53]}  Qe4+ {[%clk 0:00:18]} 34. f3 {[%clk 0:01:53]} 1-0


[Site "https://www.chess.com"]

[Event "Titled Tuesday Blitz April 11 Late 2023"]
[White "Cigan, Jason"]
[Black "Sreyas Payyappat"]
[WhiteFideId "2064022"]
[BlackFideId "46674969"]
[WhiteElo "2000"]
[BlackElo "2083"]
[Result "0-1"]
[Round "06"]
[TimeControl "180+2"]
[Date "2023.04.11"]
[WhiteClock "0:00:15"]
[BlackClock "0:01:03"]

1. e4 {[%clk 0:03:00]}  c6 {[%clk 0:02:58]} 2. d4 {[%clk 0:03:00]}  d5 {[%clk 0:02:59]} 3. Nd2 {[%clk 0:03:00]}  dxe4 {[%clk 0:02:59]} 4. Nxe4 {[%clk 0:03:01]}  Nf6 {[%clk 0:02:59]} 5. Nxf6+ {[%clk 0:03:01]}  exf6 {[%clk 0:03:00]} 6. c3 {[%clk 0:03:02]}  Bd6 {[%clk 0:03:01]} 7. Bd3 {[%clk 0:03:02]}  O-O {[%clk 0:03:02]} 8. Qc2 {[%clk 0:03:01]}  Re8+ {[%clk 0:03:03]} 9. Ne2 {[%clk 0:03:01]}  h5 {[%clk 0:03:04]} 10. O-O {[%clk 0:03:00]}  Nd7 {[%clk 0:03:04]} 11. Bd2 {[%clk 0:02:55]}  Nf8 {[%clk 0:03:04]} 12. Rae1 {[%clk 0:02:54]}  h4 {[%clk 0:03:02]} 13. h3 {[%clk 0:02:53]}  Be6 {[%clk 0:02:59]} 14. f4 {[%clk 0:02:53]}  b5 {[%clk 0:02:51]} 15. f5 {[%clk 0:02:47]}  Bd5 {[%clk 0:02:51]} 16. Bf4 {[%clk 0:02:39]}  Nh7 {[%clk 0:02:42]} 17. Qd2 {[%clk 0:02:33]}  Re7 {[%clk 0:02:32]} 18. a3 {[%clk 0:02:26]}  Qc7 {[%clk 0:02:28]} 19. Bxd6 {[%clk 0:02:20]}  Qxd6 {[%clk 0:02:29]} 20. Qf4 {[%clk 0:02:11]}  Qxf4 {[%clk 0:02:24]} 21. Nxf4 {[%clk 0:02:11]}  Rae8 {[%clk 0:02:13]} 22. Kf2 {[%clk 0:02:10]}  Be4 {[%clk 0:02:06]} 23. Bxe4 {[%clk 0:02:03]}  Rxe4 {[%clk 0:02:06]} 24. Rxe4 {[%clk 0:02:00]}  Rxe4 {[%clk 0:02:07]} 25. Nd3 {[%clk 0:01:56]}  Nf8 {[%clk 0:01:56]} 26. Re1 {[%clk 0:01:54]}  Rxe1 {[%clk 0:01:54]} 27. Kxe1 {[%clk 0:01:53]}  Nd7 {[%clk 0:01:54]} 28. Kf2 {[%clk 0:01:46]}  g6 {[%clk 0:01:50]} 29. Kf3 {[%clk 0:01:23]}  Nb6 {[%clk 0:01:35]} 30. Ke4 {[%clk 0:01:07]}  Nc4 {[%clk 0:01:29]} 31. fxg6 {[%clk 0:01:03]}  fxg6 {[%clk 0:01:28]} 32. Kf4 {[%clk 0:00:46]}  Kf7 {[%clk 0:01:21]} 33. g3 {[%clk 0:00:41]}  g5+ {[%clk 0:01:20]} 34. Kf3 {[%clk 0:00:39]}  Nd2+ {[%clk 0:01:13]} 35. Ke2 {[%clk 0:00:34]}  hxg3 {[%clk 0:01:11]} 36. Ne1 {[%clk 0:00:19]}  Nc4 {[%clk 0:01:10]} 37. Nd3 {[%clk 0:00:18]}  f5 {[%clk 0:01:06]} 38. Kf3 {[%clk 0:00:18]}  f4 {[%clk 0:01:06]} 39. h4 {[%clk 0:00:16]}  gxh4 {[%clk 0:01:05]} 40. b3 {[%clk 0:00:15]}  Nd2+ {[%clk 0:01:04]} 41. Kg4 {[%clk 0:00:15]}  g2 {[%clk 0:01:03]} 0-1


[Site "https://www.chess.com"]

[Event "Titled Tuesday Blitz April 11 Late 2023"]
[White "Gurevich, Dmitry"]
[Black "Garcia Cuenca, Victor"]
[WhiteFideId "2000407"]
[BlackFideId "2250829"]
[WhiteElo "2506"]
[BlackElo "2329"]
[Result "1-0"]
[Round "06"]
[TimeControl "180+2"]
[Date "2023.04.11"]
[WhiteClock "0:00:36"]
[BlackClock "0:00:06"]

1. d4 {[%clk 0:02:48]}  Nf6 {[%clk 0:03:00]} 2. c4 {[%clk 0:02:48]}  c5 {[%clk 0:03:00]} 3. Nf3 {[%clk 0:02:47]}  cxd4 {[%clk 0:03:00]} 4. Nxd4 {[%clk 0:02:47]}  g6 {[%clk 0:03:00]} 5. Nc3 {[%clk 0:02:46]}  Bg7 {[%clk 0:03:01]} 6. e4 {[%clk 0:02:47]}  d6 {[%clk 0:03:00]} 7. Be2 {[%clk 0:02:46]}  O-O {[%clk 0:03:01]} 8. Be3 {[%clk 0:02:47]}  Nc6 {[%clk 0:03:01]} 9. O-O {[%clk 0:02:44]}  Nxd4 {[%clk 0:03:00]} 10. Bxd4 {[%clk 0:02:43]}  Be6 {[%clk 0:03:01]} 11. Rc1 {[%clk 0:02:42]}  a6 {[%clk 0:03:00]} 12. Qd2 {[%clk 0:02:34]}  Rc8 {[%clk 0:02:59]} 13. b3 {[%clk 0:02:33]}  Qa5 {[%clk 0:02:56]} 14. Rfd1 {[%clk 0:02:30]}  Rfe8 {[%clk 0:02:48]} 15. f3 {[%clk 0:02:24]}  Nd7 {[%clk 0:02:30]} 16. Bxg7 {[%clk 0:02:15]}  Kxg7 {[%clk 0:02:31]} 17. f4 {[%clk 0:02:15]}  Nf6 {[%clk 0:02:22]} 18. Bf3 {[%clk 0:02:07]}  b5 {[%clk 0:01:44]} 19. cxb5 {[%clk 0:01:59]}  axb5 {[%clk 0:01:43]} 20. f5 {[%clk 0:01:59]}  gxf5 {[%clk 0:01:33]} 21. Qg5+ {[%clk 0:01:57]}  Kh8 {[%clk 0:01:33]} 22. exf5 {[%clk 0:01:57]}  b4 {[%clk 0:00:43]} 23. Ne4 {[%clk 0:01:53]}  Rxc1 {[%clk 0:00:24]} 24. Rxc1 {[%clk 0:01:48]}  Rg8 {[%clk 0:00:23]} 25. Qf4 {[%clk 0:01:28]}  Nd5 {[%clk 0:00:19]} 26. Qh4 {[%clk 0:01:17]}  Bxf5 {[%clk 0:00:19]} 27. Ng5 {[%clk 0:01:15]}  Bg6 {[%clk 0:00:19]} 28. Qd4+ {[%clk 0:01:11]}  Nf6 {[%clk 0:00:18]} 29. h4 {[%clk 0:01:03]}  h6 {[%clk 0:00:11]} 30. Nh3 {[%clk 0:00:55]}  Bf5 {[%clk 0:00:12]} 31. Nf4 {[%clk 0:00:44]}  Qxa2 {[%clk 0:00:12]} 32. Rc7 {[%clk 0:00:36]}  e5 {[%clk 0:00:06]} 33. Qxd6 {[%clk 0:00:36]} 1-0


[Site "https://www.chess.com"]

[Event "Titled Tuesday Blitz April 11 Late 2023"]
[White "Korkmaz, Necmettin"]
[Black "Chemin, Justo Reinaldo"]
[WhiteFideId "6303285"]
[BlackFideId "2101580"]
[WhiteElo "2097"]
[BlackElo "1940"]
[Result "1-0"]
[Round "06"]
[TimeControl "180+2"]
[Date "2023.04.11"]
[WhiteClock "0:01:06"]
[BlackClock "0:00:30"]

1. e4 {[%clk 0:03:00]}  e6 {[%clk 0:02:59]} 2. d3 {[%clk 0:03:00]}  d5 {[%clk 0:02:59]} 3. Nd2 {[%clk 0:03:00]}  c5 {[%clk 0:02:58]} 4. Ngf3 {[%clk 0:03:00]}  Nc6 {[%clk 0:02:58]} 5. g3 {[%clk 0:02:59]}  g6 {[%clk 0:02:54]} 6. Bg2 {[%clk 0:02:59]}  Bg7 {[%clk 0:02:55]} 7. O-O {[%clk 0:02:59]}  Nge7 {[%clk 0:02:55]} 8. Re1 {[%clk 0:02:59]}  O-O {[%clk 0:02:52]} 9. Qe2 {[%clk 0:02:56]}  b5 {[%clk 0:02:46]} 10. e5 {[%clk 0:02:55]}  a5 {[%clk 0:02:45]} 11. Nf1 {[%clk 0:02:55]}  h6 {[%clk 0:02:31]} 12. h4 {[%clk 0:02:52]}  h5 {[%clk 0:02:30]} 13. N1h2 {[%clk 0:02:40]}  Nf5 {[%clk 0:02:28]} 14. Bg5 {[%clk 0:02:36]}  f6 {[%clk 0:02:16]} 15. exf6 {[%clk 0:02:35]}  Bxf6 {[%clk 0:02:16]} 16. c3 {[%clk 0:02:33]}  Re8 {[%clk 0:02:02]} 17. Rad1 {[%clk 0:02:27]}  Ra7 {[%clk 0:02:01]} 18. Bxf6 {[%clk 0:02:26]}  Qxf6 {[%clk 0:02:00]} 19. Ng5 {[%clk 0:02:26]}  Rae7 {[%clk 0:01:50]} 20. Nhf3 {[%clk 0:02:23]}  b4 {[%clk 0:01:48]} 21. Ne5 {[%clk 0:02:09]}  Nxe5 {[%clk 0:01:46]} 22. Qxe5 {[%clk 0:02:09]}  Qxe5 {[%clk 0:01:46]} 23. Rxe5 {[%clk 0:02:10]}  bxc3 {[%clk 0:01:45]} 24. bxc3 {[%clk 0:02:09]}  Kg7 {[%clk 0:01:42]} 25. Rb1 {[%clk 0:02:09]}  Kf6 {[%clk 0:01:39]} 26. Ree1 {[%clk 0:01:55]}  Ba6 {[%clk 0:01:39]} 27. Bf1 {[%clk 0:01:47]}  c4 {[%clk 0:01:31]} 28. d4 {[%clk 0:01:42]}  Bc8 {[%clk 0:01:22]} 29. Rb6 {[%clk 0:01:41]}  Rb7 {[%clk 0:01:13]} 30. Reb1 {[%clk 0:01:32]}  Rxb6 {[%clk 0:01:10]} 31. Rxb6 {[%clk 0:01:32]}  Rd8 {[%clk 0:01:08]} 32. Bh3 {[%clk 0:01:23]}  Nd6 {[%clk 0:01:01]} 33. f4 {[%clk 0:01:16]}  Nf5 {[%clk 0:00:56]} 34. Bxf5 {[%clk 0:01:15]}  Kxf5 {[%clk 0:00:54]} 35. Kf2 {[%clk 0:01:15]}  Bd7 {[%clk 0:00:49]} 36. Nf3 {[%clk 0:01:13]}  Be8 {[%clk 0:00:45]} 37. Ne5 {[%clk 0:01:11]}  Ra8 {[%clk 0:00:44]} 38. Ke3 {[%clk 0:01:10]}  a4 {[%clk 0:00:44]} 39. a3 {[%clk 0:01:10]}  Ra5 {[%clk 0:00:43]} 40. Rb8 {[%clk 0:01:08]}  Rb5 {[%clk 0:00:33]} 41. Rxe8 {[%clk 0:01:08]}  g5 {[%clk 0:00:30]} 42. Rf8# {[%clk 0:01:06]} 1-0


[Site "https://www.chess.com"]

[Event "Titled Tuesday Blitz April 11 Late 2023"]
[White "Womacka, Mathias"]
[Black "Gonzalez Zamora, Juan Carlos"]
[WhiteFideId "4611390"]
[BlackFideId "3507548"]
[WhiteElo "2377"]
[BlackElo "2535"]
[Result "1-0"]
[Round "06"]
[TimeControl "180+2"]
[Date "2023.04.11"]
[WhiteClock "0:00:06"]
[BlackClock "0:00:10"]

1. e4 {[%clk 0:03:00]}  d6 {[%clk 0:02:59]} 2. d4 {[%clk 0:03:00]}  Nf6 {[%clk 0:02:59]} 3. Nc3 {[%clk 0:03:00]}  g6 {[%clk 0:02:59]} 4. f4 {[%clk 0:03:00]}  Bg7 {[%clk 0:02:59]} 5. Nf3 {[%clk 0:03:00]}  O-O {[%clk 0:02:59]} 6. Bd3 {[%clk 0:02:59]}  Bg4 {[%clk 0:02:57]} 7. e5 {[%clk 0:02:54]}  dxe5 {[%clk 0:02:56]} 8. dxe5 {[%clk 0:02:54]}  Nfd7 {[%clk 0:02:50]} 9. h3 {[%clk 0:02:52]}  Bxf3 {[%clk 0:02:49]} 10. Qxf3 {[%clk 0:02:53]}  Nc5 {[%clk 0:02:49]} 11. Bc4 {[%clk 0:02:45]}  c6 {[%clk 0:02:49]} 12. Be3 {[%clk 0:02:44]}  Nca6 {[%clk 0:02:19]} 13. h4 {[%clk 0:02:08]}  Nb4 {[%clk 0:02:01]} 14. Rc1 {[%clk 0:01:54]}  b5 {[%clk 0:01:39]} 15. Bxb5 {[%clk 0:01:53]}  cxb5 {[%clk 0:01:22]} 16. Qxa8 {[%clk 0:01:51]}  N4c6 {[%clk 0:01:22]} 17. Qb7 {[%clk 0:01:37]}  b4 {[%clk 0:01:21]} 18. Rd1 {[%clk 0:01:26]}  Qa5 {[%clk 0:01:14]} 19. Nd5 {[%clk 0:01:25]}  Qxa2 {[%clk 0:01:14]} 20. Nxe7+ {[%clk 0:01:15]}  Nxe7 {[%clk 0:01:14]} 21. Qxe7 {[%clk 0:01:16]}  Qxb2 {[%clk 0:01:12]} 22. O-O {[%clk 0:01:00]}  a5 {[%clk 0:00:49]} 23. Qc5 {[%clk 0:00:42]}  Qa3 {[%clk 0:00:44]} 24. Ra1 {[%clk 0:00:35]}  Qc3 {[%clk 0:00:37]} 25. Qxc3 {[%clk 0:00:34]}  bxc3 {[%clk 0:00:38]} 26. Rxa5 {[%clk 0:00:33]}  Nc6 {[%clk 0:00:36]} 27. Rc5 {[%clk 0:00:33]}  Ne7 {[%clk 0:00:36]} 28. Rxc3 {[%clk 0:00:29]}  Rd8 {[%clk 0:00:32]} 29. Rd3 {[%clk 0:00:28]}  Rc8 {[%clk 0:00:32]} 30. Rc1 {[%clk 0:00:26]}  Nf5 {[%clk 0:00:30]} 31. Bf2 {[%clk 0:00:25]}  h5 {[%clk 0:00:28]} 32. c4 {[%clk 0:00:24]}  Bf8 {[%clk 0:00:25]} 33. c5 {[%clk 0:00:23]}  Rc6 {[%clk 0:00:25]} 34. Rb3 {[%clk 0:00:19]}  Ng7 {[%clk 0:00:24]} 35. Rb6 {[%clk 0:00:18]}  Rc8 {[%clk 0:00:24]} 36. c6 {[%clk 0:00:19]}  Ne6 {[%clk 0:00:24]} 37. Be3 {[%clk 0:00:18]}  Be7 {[%clk 0:00:24]} 38. g3 {[%clk 0:00:17]}  Bd8 {[%clk 0:00:24]} 39. Rb7 {[%clk 0:00:11]}  Ba5 {[%clk 0:00:24]} 40. Kg2 {[%clk 0:00:10]}  Nd8 {[%clk 0:00:20]} 41. Rd7 {[%clk 0:00:09]}  Nxc6 {[%clk 0:00:18]} 42. Rd6 {[%clk 0:00:09]}  Ne7 {[%clk 0:00:17]} 43. Rxc8+ {[%clk 0:00:08]}  Nxc8 {[%clk 0:00:18]} 44. Ra6 {[%clk 0:00:08]}  Bc7 {[%clk 0:00:12]} 45. Ra8 {[%clk 0:00:08]}  Kh7 {[%clk 0:00:13]} 46. Rxc8 {[%clk 0:00:08]}  Ba5 {[%clk 0:00:14]} 47. Kf3 {[%clk 0:00:08]}  Bb4 {[%clk 0:00:14]} 48. Bc5 {[%clk 0:00:08]}  Be1 {[%clk 0:00:13]} 49. Rc7 {[%clk 0:00:07]}  Kg8 {[%clk 0:00:13]} 50. Bf2 {[%clk 0:00:06]}  Ba5 {[%clk 0:00:12]} 51. Rb7 {[%clk 0:00:06]}  Bc3 {[%clk 0:00:10]} 52. Ke4 {[%clk 0:00:06]} 1-0


[Site "https://www.chess.com"]